fUSD/lending_fUSD_20260408
["ID","MTS","AMOUNT","RATE_DAILY","PERIOD"]
[420038865,1775628650971,-507.0,0.00019073,7]
[420038866,1775628650980,-444.25174886,0.00019088,2]
[420038867,1775628650990,-271.16,0.0001909,2]
[420038868,1775628651000,-2006.0,0.00019177,2]
[420038869,1775628651010,-153.88,0.00019178,2]
[420038870,1775628651019,-669.52959123,0.00019205,2]
[420038871,1775628651029,-2000.0,0.00019215,2]
[420038872,1775628651039,-2000.0,0.00019215,2]
[420038873,1775628651049,-2000.0,0.00019215,2]
[420038874,1775628651059,-2000.0,0.00019215,2]
[420038875,1775628651068,-2000.0,0.00019215,2]
[420038876,1775628651078,-2000.0,0.00019215,2]
[420038877,1775628651087,-2000.0,0.00019215,2]
[420038878,1775628651097,-2000.0,0.00019215,2]
[420038879,1775628651106,-2000.0,0.00019215,2]
[420038880,1775628651116,-2000.0,0.00019215,2]
[420038881,1775628651125,-505.38545045,0.00019229,2]
[420038882,1775628651135,-271.16,0.00019262,2]
[420038883,1775628651145,-310.0483,0.000193,2]
[420038884,1775628651155,-500.0,0.00019307,2]
[420038885,1775628651165,-200.0,0.00019316,2]
[420038886,1775628651174,-319.09041194,0.00019316,2]
[420038887,1775628651184,-1377.42282659,0.00019316,2]
[420038888,1775628651193,-693.14665977,0.00019316,2]
[420038889,1775628651203,-194.72792766,0.00019316,2]
[420038890,1775628651213,-2006.0,0.00019358,2]
[420038891,1775628651223,-2006.0,0.0001937,2]
[420038892,1775628651232,-2006.0,0.00019401,2]
[420038893,1775628651242,-2006.0,0.00019427,2]
[420038894,1775628651252,-2006.0,0.00019435,2]
[420038895,1775628651261,-1600.0,0.0001949,2]
[420038896,1775628651271,-2000.0,0.000195,2]
[420038897,1775628651281,-50937.0,0.000195,2]
[420038898,1775628651298,-2006.0,0.00019526,2]
[420038899,1775628651308,-2006.0,0.00019592,2]
[420038900,1775628651318,-293.23442893,0.00019607,2]
[420038901,1775628651329,-2006.0,0.00019706,2]
[420038902,1775628651338,-2006.0,0.00019762,2]
[420038903,1775628651348,-200.0,0.00019864,2]
[420038904,1775628651357,-1428.38747117,0.00019864,2]
[420038905,1775628651367,-201.93286099,0.00019864,2]
[420038906,1775628651376,-2006.0,0.00019873,2]
[420038907,1775628651386,-2006.0,0.00019878,2]
[420038908,1775628651396,-500.0,0.00019886,2]
[420038909,1775628651405,-5533.0,0.000199,3]
[420038910,1775628651415,-2006.0,0.00019978,2]
[420038911,1775628651424,-200.0,0.0002,10]
[420038912,1775628651434,-2464.68,0.0002,2]
[420038913,1775628651444,-825.0,0.0002,30]
[420038914,1775628651454,-1000.0,0.0002,7]
[420038915,1775628651463,-465.93814266,0.0002,120]
[420038916,1775628651473,-1282.0,0.0002,2]
[420038917,1775628651482,-160.0,0.0002,3]
[420038918,1775628651493,-277.52815516,0.0002002,2]
[420038919,1775628651502,-650.80799827,0.0002002,2]
[420038920,1775628651512,-2006.0,0.00020021,2]
[420038921,1775628651521,-1300.51,0.00020054,2]
[420038922,1775628651532,-300.0,0.000201,10]
[420038923,1775628651542,-2006.0,0.00020171,2]
[420038924,1775628651552,-2000.0,0.00020179,2]
[420038925,1775628651562,-2006.0,0.0002019,2]
[420038926,1775628651572,-999.0,0.00020219,2]
[420038927,1775628651583,-622.0,0.0002023,2]
[420038928,1775628651593,-150.0,0.00020233,2]
[420038929,1775628651603,-1264.0,0.00020233,2]
[420038930,1775628651614,-926.0,0.00020236,2]
[420038931,1775628651625,-1217.0,0.00020236,2]
[420038932,1775628651636,-2471.0,0.00020239,2]
[420038933,1775628651647,-3772.0,0.00020239,2]
[420038934,1775628651657,-507.0,0.00020268,8]
[420038935,1775628651667,-5533.0,0.000203,5]
[420038936,1775628651678,-481.98,0.00020379,2]
[420038937,1775628651688,-2006.0,0.00020386,2]
[420038938,1775628651698,-599.60298507,0.00020411,2]
[420038939,1775628651708,-646.65982734,0.00020411,2]
[420038940,1775628651718,-200.0,0.00020412,2]
[420038941,1775628651728,-1481.23780761,0.00020412,2]
[420038942,1775628651738,-209.40437684,0.00020412,2]
[420038943,1775628651749,-2006.0,0.0002044,2]
[420038944,1775628651759,-2741.7096711,0.00020462,2]
[420038945,1775628651769,-500.0,0.00020483,2]
[420038946,1775628651779,-1513.75228517,0.00020499,2]
[420038947,1775628651791,-2006.0,0.00020507,2]
[420038948,1775628651801,-208.85233043,0.00020526,8]
[420038949,1775628651811,-2006.0,0.00020562,2]
[420038950,1775628651821,-349.9336,0.000206,2]
[420038951,1775628651832,-12649.0,0.0002067,2]
[420038952,1775628651843,-12086.47644827,0.00020679,2]
[420038953,1775628651853,-2006.0,0.00020688,2]
[420038954,1775628651863,-2812.0,0.00020709,2]
[420038955,1775628651873,-2006.0,0.00020711,2]
[420038956,1775628651884,-481.98,0.00020719,2]
[420038957,1775628651895,-150.0,0.00020749,2]
[420038958,1775628651905,-150.0,0.00020749,2]
[420038959,1775628651915,-150.0,0.00020749,2]
[420038960,1775628651925,-150.0,0.00020749,2]
[420038961,1775628651934,-150.0,0.00020749,2]
[420038962,1775628651944,-150.0,0.00020749,2]
[420038963,1775628651954,-1046.0,0.00020749,2]
[420038964,1775628651963,-1347.0,0.00020749,2]
[420038965,1775628651973,-9126.7707,0.00020783,2]
[420038966,1775628651983,-2000.0,0.000208,2]
[420038967,1775628651993,-152.0,0.00020805,3]
[420038968,1775628652003,-516.67152996,0.00020883,2]
[420038969,1775628652014,-200.0,0.0002096,2]
[420038970,1775628652024,-1536.04360649,0.0002096,2]
[420038971,1775628652035,-217.15233878,0.0002096,2]
[420038972,1775628652047,-535.0,0.00020975,7]
[420038973,1775628652057,-415.0,0.00020975,7]
[420038974,1775628652067,-371.0,0.00020975,7]
[420038975,1775628652077,-450.0,0.00021,2]
[420038976,1775628652088,-481.98,0.00021059,2]
[420038977,1775628652098,-2006.0,0.00021069,2]
[420038978,1775628652108,-2006.0,0.0002108,2]
[420038979,1775628652118,-500.0,0.00021097,2]
[420038980,1775628652128,-2006.0,0.00021108,2]
[420038981,1775628652137,-1600.0,0.00021262,2]
[420038982,1775628652147,-502.0,0.00021315,2]
[420038983,1775628652157,-500.0,0.00021315,2]
[420038984,1775628652167,-1254.61,0.00021369,2]
[420038985,1775628652177,-6434.78,0.0002137,2]
[420038986,1775628652188,-481.9865117,0.00021398,2]
[420038987,1775628652198,-507.0,0.00021463,9]
[420038988,1775628652208,-200.0,0.00021508,2]
[420038989,1775628652218,-225.18697532,0.00021508,2]
[420038990,1775628652228,-500.0,0.0002173,2]
[420038991,1775628652238,-10000.0,0.00021918,7]
[420038992,1775628652247,-10000.0,0.00021918,7]
[420038993,1775628652257,-10000.0,0.00021918,7]
[420038994,1775628652267,-10000.0,0.00021918,7]
[420038995,1775628652277,-10000.0,0.00021918,7]
[420038996,1775628652287,-500.0,0.00021918,2]
[420038997,1775628652297,-500.0,0.00021918,2]
[420038998,1775628652307,-500.0,0.00021918,2]
[420038999,1775628652319,-220.54357103,0.00021918,2]
[420039000,1775628652329,-150.0,0.00021918,2]
[420039001,1775628652340,-394.9499,0.00022,2]
[420039002,1775628652350,-595.0,0.00022,2]
[420039003,1775628652360,-153.0,0.00022,2]
[420039004,1775628652371,-976.0,0.00022,2]
[420039005,1775628652381,-4637.0,0.00022,2]
[420039006,1775628652390,-160.0,0.00022,7]
[420039007,1775628652400,-2944.0,0.00022,2]
[420039008,1775628652410,-160.0,0.00022,7]
[420039009,1775628652419,-1084.0,0.00022,2]
[420039010,1775628652429,-830.0,0.00022,2]
[420039011,1775628652439,-543.52,0.00022,30]
[420039012,1775628652448,-1159.0,0.00022,2]
[420039013,1775628652458,-201.2726407,0.00022056,2]
[420039014,1775628652467,-185.98971972,0.00022056,2]
[420039015,1775628652477,-669.52959123,0.00022103,2]
[420039016,1775628652486,-12086.47644827,0.00022374,2]
[420039017,1775628652496,-500.0,0.00022382,2]
[420039018,1775628652506,-825.0,0.00022407,30]
[420039019,1775628652515,-152.0,0.00022466,4]
[420039020,1775628652525,-1024.9741617,0.0002254,5]
[420039021,1775628652535,-1085.02854439,0.0002254,5]
[420039022,1775628652545,-1096.26886458,0.0002254,5]
[420039023,1775628652555,-1134.51293714,0.0002254,5]
[420039024,1775628652564,-1081.43297556,0.0002254,5]
[420039025,1775628652573,-1629.29971181,0.0002254,5]
[420039026,1775628652583,-507.0,0.00022657,10]
[420039027,1775628652594,-3244.0,0.00022737,2]
[420039028,1775628652603,-5635.86,0.00022955,2]
[420039029,1775628652613,-2000.0,0.00022982,2]
[420039030,1775628652622,-595.0,0.00023,2]
[420039031,1775628652632,-500.0,0.00023,2]
[420039032,1775628652641,-153.0,0.00023,2]
[420039033,1775628652651,-976.0,0.00023,2]
[420039034,1775628652661,-4637.0,0.00023,2]
[420039035,1775628652671,-2944.0,0.00023,2]
[420039036,1775628652681,-1084.0,0.00023,2]
[420039037,1775628652691,-830.0,0.00023,2]
[420039038,1775628652700,-160.0,0.00023,2]
[420039039,1775628652710,-1159.0,0.00023,2]
[420039040,1775628652720,-2349.19506399,0.00023,2]
[420039041,1775628652730,-160.0,0.00023,3]
[420039042,1775628652739,-1208.71,0.00023013,7]
[420039043,1775628652750,-500.0,0.00023053,2]
[420039044,1775628652760,-621.78829552,0.0002315,2]
[420039045,1775628652770,-670.58624095,0.0002315,2]
[420039046,1775628652780,-2000.0,0.000232,2]
[420039047,1775628652790,-622.0,0.0002323,2]
[420039048,1775628652800,-150.0,0.00023233,2]
[420039049,1775628652810,-1264.0,0.00023233,2]
[420039050,1775628652820,-926.0,0.00023236,2]
[420039051,1775628652829,-1217.0,0.00023236,2]
[420039052,1775628652840,-2471.0,0.00023239,2]
[420039053,1775628652849,-2936.892,0.00023239,2]
[420039054,1775628652859,-445.7572,0.000233,2]
[420039055,1775628652869,-1000.0,0.00023333,7]
[420039056,1775628652879,-1025.0,0.00023533,5]
[420039057,1775628652889,-151.0,0.00023535,7]
[420039058,1775628652899,-200.0,0.00023607,2]
[420039059,1775628652909,-1537.0,0.0002369,3]
[420039060,1775628652918,-500.0,0.00023745,2]
[420039061,1775628652928,-1046.0,0.00023749,2]
[420039062,1775628652938,-1347.0,0.00023749,2]
[420039063,1775628652948,-507.0,0.00023852,11]
[420039064,1775628652958,-402.56716046,0.00023899,2]
[420039065,1775628652968,-160.0,0.00024,7]
[420039066,1775628652977,-595.0,0.00024,2]
[420039067,1775628652987,-153.0,0.00024,2]
[420039068,1775628652996,-976.0,0.00024,2]
[420039069,1775628653006,-4637.0,0.00024,2]
[420039070,1775628653016,-2944.0,0.00024,2]
[420039071,1775628653026,-1084.0,0.00024,2]
[420039072,1775628653037,-830.0,0.00024,2]
[420039073,1775628653047,-1159.0,0.00024,2]
[420039074,1775628653057,-12086.47644827,0.00024069,2]
[420039075,1775628653067,-152.0,0.00024127,5]
[420039076,1775628653076,-1974.12409459,0.00024141,120]
[420039077,1775628653086,-4713.42618612,0.00024141,120]
[420039078,1775628653095,-1533.3595463,0.00024141,120]
[420039079,1775628653105,-300.0,0.0002415,2]
[420039080,1775628653115,-150.0,0.0002415,7]
[420039081,1775628653124,-500.0,0.00024457,2]
[420039082,1775628653134,-2000.0,0.000245,2]
[420039083,1775628653144,-150.0,0.00024559,2]
[420039084,1775628653154,-150.0,0.00024559,2]
[420039085,1775628653164,-150.0,0.00024559,2]
[420039086,1775628653174,-150.0,0.00024559,2]
[420039087,1775628653184,-150.0,0.00024559,2]
[420039088,1775628653194,-235.51154759,0.00024559,2]
[420039089,1775628653203,-257.21753866,0.00024559,2]
[420039090,1775628653213,-150.0,0.00024559,2]
[420039091,1775628653223,-150.0,0.00024559,2]
[420039092,1775628653233,-150.0,0.00024559,2]
[420039093,1775628653243,-503.1005,0.000246,2]
[420039094,1775628653253,-150.0,0.00024647,4]
[420039095,1775628653264,-2000.0,0.00024658,7]
[420039096,1775628653273,-1000.0,0.00024658,2]
[420039097,1775628653283,-179.52,0.00024658,30]
[420039098,1775628653293,-177.67,0.00024658,2]
[420039099,1775628653302,-150.0,0.0002466,4]
[420039100,1775628653312,-150.0,0.00024678,4]
[420039101,1775628653321,-150.0,0.00024683,4]
[420039102,1775628653330,-150.0,0.00024695,4]
[420039103,1775628653340,-150.0,0.00024735,4]
[420039104,1775628653350,-150.0,0.00024761,4]
[420039105,1775628653359,-150.0,0.00024796,4]
[420039106,1775628653368,-150.0,0.00024807,4]
[420039107,1775628653378,-150.0,0.00024807,4]
[420039108,1775628653387,-825.0,0.00024814,60]
[420039109,1775628653397,-150.0,0.00024823,4]
[420039110,1775628653406,-150.0,0.00024832,4]
[420039111,1775628653416,-150.0,0.00024862,4]
[420039112,1775628653426,-8532.634782,0.000249,2]
[420039113,1775628653436,-150.0,0.00024911,4]
[420039114,1775628653446,-150.0,0.00024915,4]
[420039115,1775628653457,-150.0,0.00024931,4]
[420039116,1775628653467,-150.0,0.00024949,4]
[420039117,1775628653476,-150.0,0.00024963,4]
[420039118,1775628653486,-150.0,0.00024968,4]
[420039119,1775628653496,-150.0,0.00024999,4]
[420039120,1775628653505,-595.0,0.00025,2]
[420039121,1775628653515,-550.0,0.00025,2]
[420039122,1775628653525,-153.0,0.00025,2]
[420039123,1775628653535,-976.0,0.00025,2]
[420039124,1775628653545,-4637.0,0.00025,2]
[420039125,1775628653555,-2944.0,0.00025,2]
[420039126,1775628653564,-612.0,0.00025,2]
[420039127,1775628653574,-1000.0,0.00025,2]
[420039128,1775628653583,-627.0,0.00025,2]
[420039129,1775628653593,-1084.0,0.00025,2]
[420039130,1775628653603,-830.0,0.00025,2]
[420039131,1775628653612,-878.0,0.00025,2]
[420039132,1775628653623,-1159.0,0.00025,2]
[420039133,1775628653632,-150.0,0.00025,2]
[420039134,1775628653642,-10000.0,0.00025,7]
[420039135,1775628653652,-669.52959123,0.00025002,2]
[420039136,1775628653661,-150.0,0.00025014,4]
[420039137,1775628653671,-150.0,0.00025033,4]
[420039138,1775628653680,-507.0,0.00025046,12]
[420039139,1775628653689,-150.0,0.00025055,4]
[420039140,1775628653699,-150.0,0.00025055,4]
[420039141,1775628653709,-150.0,0.00025064,4]
[420039142,1775628653719,-150.0,0.00025087,4]
[420039143,1775628653728,-150.0,0.00025105,4]
[420039144,1775628653738,-150.0,0.00025152,4]
[420039145,1775628653748,-150.0,0.00025165,4]
[420039146,1775628653757,-150.0,0.00025175,4]
[420039147,1775628653767,-150.0,0.00025179,4]
[420039148,1775628653776,-500.0,0.00025191,2]
[420039149,1775628653786,-150.0,0.00025241,4]
[420039150,1775628653796,-150.0,0.00025263,4]
[420039151,1775628653806,-150.0,0.00025266,4]
[420039152,1775628653815,-150.0,0.00025271,4]
[420039153,1775628653825,-150.0,0.00025303,4]
[420039154,1775628653836,-150.0,0.00025303,4]
[420039155,1775628653845,-150.0,0.00025339,4]
[420039156,1775628653855,-150.0,0.00025351,4]
[420039157,1775628653865,-150.0,0.00025367,4]
[420039158,1775628653874,-150.0,0.00025378,4]
[420039159,1775628653883,-150.0,0.00025389,4]
[420039160,1775628653893,-150.0,0.00025427,4]
[420039161,1775628653902,-550.0,0.00025434,2]
[420039162,1775628653912,-550.0,0.00025434,2]
[420039163,1775628653921,-427.0,0.00025434,2]
[420039164,1775628653931,-150.0,0.00025439,4]
[420039165,1775628653941,-150.0,0.00025468,4]
[420039166,1775628653951,-150.0,0.00025468,4]
[420039167,1775628653961,-1162.81,0.00025479,7]
[420039168,1775628653972,-150.0,0.00025508,4]
[420039169,1775628653981,-150.0,0.00025514,4]
[420039170,1775628653991,-150.0,0.00025527,4]
[420039171,1775628654002,-150.0,0.00025551,4]
[420039172,1775628654012,-150.0,0.00025551,4]
[420039173,1775628654022,-150.0,0.0002557,4]
[420039174,1775628654032,-2200.0,0.00025582,7]
[420039175,1775628654042,-1100.0,0.00025582,7]
[420039176,1775628654052,-150.0,0.00025615,4]
[420039177,1775628654062,-150.0,0.00025627,4]
[420039178,1775628654072,-150.0,0.0002565,4]
[420039179,1775628654082,-150.0,0.00025671,4]
[420039180,1775628654092,-150.0,0.00025675,4]
[420039181,1775628654102,-150.0,0.00025703,4]
[420039182,1775628654111,-150.0,0.00025728,4]
[420039183,1775628654120,-150.0,0.00025745,4]
[420039184,1775628654130,-12086.47644827,0.00025764,2]
[420039185,1775628654140,-150.0,0.00025772,4]
[420039186,1775628654149,-150.0,0.00025787,4]
[420039187,1775628654159,-152.0,0.00025789,6]
[420039188,1775628654169,-150.0,0.00025791,4]
[420039189,1775628654178,-150.0,0.00025799,4]
[420039190,1775628654188,-150.0,0.00025799,4]
[420039191,1775628654198,-2812.0,0.000258,3]
[420039192,1775628654208,-150.0,0.00025864,4]
[420039193,1775628654217,-150.0,0.00025873,4]
[420039194,1775628654227,-150.0,0.00025879,4]
[420039195,1775628654236,-500.57128682,0.00025889,2]
[420039196,1775628654246,-421.23557278,0.00025889,2]
[420039197,1775628654255,-567.8206,0.000259,2]
[420039198,1775628654264,-150.0,0.00025923,4]
[420039199,1775628654518,-150.0,0.00025923,4]
[420039200,1775628654543,-150.0,0.00025923,4]
[420039201,1775628654553,-500.0,0.00025947,2]
[420039202,1775628654562,-150.0,0.00025967,4]
[420039203,1775628654572,-150.0,0.00025974,4]
[420039204,1775628654581,-150.0,0.00025983,4]
[420039205,1775628654591,-595.0,0.00026,2]
[420039206,1775628654600,-976.0,0.00026,2]
[420039207,1775628654610,-4637.0,0.00026,2]
[420039208,1775628654620,-2944.0,0.00026,2]
[420039209,1775628654630,-160.0,0.00026,3]
[420039210,1775628654639,-1084.0,0.00026,2]
[420039211,1775628654649,-830.0,0.00026,2]
[420039212,1775628654659,-1159.0,0.00026,2]
[420039213,1775628654669,-150.0,0.00026047,4]
[420039214,1775628654679,-150.0,0.00026047,4]
[420039215,1775628654688,-150.0,0.00026055,4]
[420039216,1775628654698,-150.0,0.0002606,4]
[420039217,1775628654707,-150.0,0.00026075,4]
[420039218,1775628654716,-543.52,0.0002608,30]
[420039219,1775628654726,-150.0,0.00026101,4]
[420039220,1775628654735,-150.0,0.00026118,4]
[420039221,1775628654745,-1573.0,0.0002612,3]
[420039222,1775628654755,-2812.0,0.0002612,3]
[420039223,1775628654764,-2000.0,0.00026125,2]
[420039224,1775628654774,-1002.2105,0.00026125,2]
[420039225,1775628654783,-150.0,0.00026143,4]
[420039226,1775628654793,-150.0,0.00026171,4]
[420039227,1775628654803,-150.0,0.00026176,4]
[420039228,1775628654812,-150.0,0.00026196,4]
[420039229,1775628654821,-150.0,0.0002622,4]
[420039230,1775628654832,-622.0,0.0002623,2]
[420039231,1775628654841,-150.0,0.00026231,4]
[420039232,1775628654851,-1264.0,0.00026233,2]
[420039233,1775628654861,-926.0,0.00026236,2]
[420039234,1775628654870,-1217.0,0.00026236,2]
[420039235,1775628654880,-2471.0,0.00026239,2]
[420039236,1775628654889,-507.0,0.00026241,13]
[420039237,1775628654899,-150.0,0.00026277,4]
[420039238,1775628654910,-150.0,0.00026295,4]
[420039239,1775628654919,-150.0,0.00026295,4]
[420039240,1775628654928,-60271.2116798,0.00026302,2]
[420039241,1775628654938,-150.0,0.00026319,4]
[420039242,1775628654947,-150.0,0.00026333,4]
[420039243,1775628654956,-150.0,0.00026339,4]
[420039244,1775628654966,-150.0,0.00026378,4]
[420039245,1775628654976,-150.0,0.00026378,4]
[420039246,1775628654986,-150.0,0.00026407,4]
[420039247,1775628654996,-150.0,0.00026419,4]
[420039248,1775628655005,-2812.0,0.0002644,3]
[420039249,1775628655015,-150.0,0.00026457,4]
[420039250,1775628655025,-150.0,0.00026469,4]
[420039251,1775628655035,-150.0,0.00026479,4]
[420039252,1775628655046,-150.0,0.00026495,4]
[420039253,1775628655056,-150.0,0.00026508,4]
[420039254,1775628655066,-150.0,0.00026543,4]
[420039255,1775628655076,-150.0,0.00026543,4]
[420039256,1775628655085,-150.0,0.00026576,4]
[420039257,1775628655096,-150.0,0.0002658,4]
[420039258,1775628655105,-150.0,0.00026583,4]
[420039259,1775628655114,-150.0,0.00026605,4]
[420039260,1775628655124,-292.3100366,0.00026667,7]
[420039261,1775628655134,-150.0,0.00026667,4]
[420039262,1775628655143,-150.0,0.00026671,4]
[420039263,1775628655153,-331.44330318,0.00026675,2]
[420039264,1775628655162,-2200.0,0.00026678,7]
[420039265,1775628655173,-1100.0,0.00026678,7]
[420039266,1775628655183,-150.0,0.00026681,4]
[420039267,1775628655193,-150.0,0.00026694,4]
[420039268,1775628655202,-500.0,0.00026725,2]
[420039269,1775628655211,-150.0,0.00026742,4]
[420039270,1775628655221,-1046.0,0.00026749,2]
[420039271,1775628655231,-1347.0,0.00026749,2]
[420039272,1775628655241,-150.0,0.0002676,4]
[420039273,1775628655251,-162.0,0.0002676,3]
[420039274,1775628655261,-162.0,0.0002676,3]
[420039275,1775628655271,-1573.0,0.0002676,3]
[420039276,1775628655281,-150.0,0.00026782,4]
[420039277,1775628655291,-150.0,0.00026792,4]
[420039278,1775628655301,-150.0,0.00026792,4]
[420039279,1775628655311,-1313.79112,0.000268,3]
[420039280,1775628655321,-1000.0,0.000268,2]
[420039281,1775628655331,-500.0,0.00026811,120]
[420039282,1775628655341,-150.0,0.00026813,4]
[420039283,1775628655351,-212.22936892,0.00026816,75]
[420039284,1775628655361,-150.0,0.00026833,4]
[420039285,1775628655371,-150.0,0.00026848,4]
[420039286,1775628655380,-350.0,0.00026874,2]
[420039287,1775628655390,-150.0,0.00026878,4]
[420039288,1775628655399,-150.0,0.00026883,4]
[420039289,1775628655409,-150.0,0.00026898,4]
[420039290,1775628655418,-300.0,0.00026901,2]
[420039291,1775628655428,-300.0,0.00026901,2]
[420039292,1775628655438,-193.0,0.00026901,2]
[420039293,1775628655448,-150.0,0.00026916,4]
[420039294,1775628655458,-150.0,0.00026932,4]
[420039295,1775628655467,-150.0,0.00026936,4]
[420039296,1775628655478,-1000.0,0.00026958,2]
[420039297,1775628655487,-1000.0,0.00026974,120]
[420039298,1775628655496,-1000.0,0.00026974,120]
[420039299,1775628655506,-1000.0,0.00026974,120]
[420039300,1775628655515,-1000.0,0.00026974,120]
[420039301,1775628655524,-1000.0,0.00026974,120]
[420039302,1775628655534,-1000.0,0.00026974,120]
[420039303,1775628655543,-1000.0,0.00026974,120]
[420039304,1775628655552,-1000.0,0.00026974,120]
[420039305,1775628655562,-1000.0,0.00026974,120]
[420039306,1775628655572,-1000.0,0.00026974,120]
[420039307,1775628655582,-1000.0,0.00026974,120]
[420039308,1775628655591,-1000.0,0.00026974,120]
[420039309,1775628655601,-1000.0,0.00026974,120]
[420039310,1775628655611,-1000.0,0.00026974,120]
[420039311,1775628655620,-1000.0,0.00026974,120]
[420039312,1775628655630,-1000.0,0.00026974,120]
[420039313,1775628655640,-1000.0,0.00026974,120]
[420039314,1775628655650,-1000.0,0.00026974,120]
[420039315,1775628655661,-1000.0,0.00026974,120]
[420039316,1775628655671,-1000.0,0.00026974,120]
[420039317,1775628655681,-1000.0,0.00026974,120]
[420039318,1775628655691,-1000.0,0.00026974,120]
[420039319,1775628655700,-1000.0,0.00026974,120]
[420039320,1775628655710,-1000.0,0.00026974,120]
[420039321,1775628655720,-1000.0,0.00026974,120]
[420039322,1775628655729,-1000.0,0.00026974,120]
[420039323,1775628655739,-1000.0,0.00026974,120]
[420039324,1775628655749,-1000.0,0.00026974,120]
[420039325,1775628655758,-1000.0,0.00026974,120]
[420039326,1775628655768,-1000.0,0.00026974,120]
[420039327,1775628655778,-1000.0,0.00026974,120]
[420039328,1775628655789,-1000.0,0.00026974,120]
[420039329,1775628655799,-1000.0,0.00026979,120]
[420039330,1775628655808,-1000.0,0.00026979,120]
[420039331,1775628655818,-1000.0,0.00026979,120]
[420039332,1775628655826,-1000.0,0.00026979,120]
[420039333,1775628655835,-1000.0,0.00026979,120]
[420039334,1775628655842,-1000.0,0.00026979,120]
[420039335,1775628655851,-1000.0,0.00026979,120]
[420039336,1775628655859,-329.423,0.00026979,120]
[420039337,1775628655868,-1000.0,0.00026982,120]
[420039338,1775628655876,-150.0,0.00026984,4]
[420039339,1775628655884,-300.0,0.00026998,2]
[420039340,1775628655892,-150.0,0.00027,2]
[420039341,1775628655900,-612.0,0.00027,2]
[420039342,1775628655908,-600.0,0.00027,2]
[420039343,1775628655917,-976.0,0.00027,2]
[420039344,1775628655925,-4649.0,0.00027,2]
[420039345,1775628655933,-1000.0,0.00027,120]
[420039346,1775628655942,-2952.0,0.00027,2]
[420039347,1775628655953,-1084.0,0.00027,2]
[420039348,1775628655963,-839.0,0.00027,2]
[420039349,1775628655974,-1167.0,0.00027,2]
[420039350,1775628655984,-1000.0,0.00027007,120]
[420039351,1775628655994,-150.0,0.00027015,4]
[420039352,1775628656004,-150.0,0.00027024,4]
[420039353,1775628656014,-150.0,0.0002704,4]
[420039354,1775628656024,-150.0,0.0002704,4]
[420039355,1775628656035,-1000.0,0.00027041,120]
[420039356,1775628656045,-150.0,0.0002705,4]
[420039357,1775628656056,-1573.0,0.0002708,3]
[420039358,1775628656065,-150.0,0.00027086,4]
[420039359,1775628656075,-350.0,0.0002709,3]
[420039360,1775628656085,-1000.0,0.000271,120]
[420039361,1775628656095,-150.0,0.00027112,4]
[420039362,1775628656105,-500.0,0.00027115,3]
[420039363,1775628656115,-200.0,0.00027115,2]
[420039364,1775628656126,-152.40359973,0.00027126,2]